Cogmind - Beta 16.1 @@@ ROGUE MODE // 2026.03.13 @ 18:54:47 Player: TheSkyeDoctor Result: Destroyed by S-27 Virus with Autogun Performance ------------- Evolutions (4) 2000 Regions Visited (5) 1000 Robots Destroyed (34) 170 Value Destroyed (944) 944 Prototype IDs (2) 40 Alien Tech Used (0) 0 Bonus (0) 0 TOTAL SCORE: 4154 Bonus ------- None Cogmind --------- Core Integrity 0/850 Matter 280/300 Energy 100/100 System Corruption 4% Temperature Cool (0) Movement Hovering (60) Location -6/Factory Parts ------- > --- POWER (2) -------- (None) > --- PROPULSION (6) --- Gravmag Array > --- UTILITY (5) ------ (None) > --- WEAPON (2) ------- (None) > --- INVENTORY (5) ---- Improved Deuterium Engine Light Treads Light Treads Medium Laser Heavy Mace Peak State ------------ > --- POWER ------------ Improved Deuterium Engine Micro Nuclear Core > --- PROPULSION ------- Flight Unit Xenon Bombardment Thruster Xenon Bombardment Thruster Xenon Bombardment Thruster Xenon Bombardment Thruster > --- UTILITY ---------- Small Storage Unit Trap Scanner ECM Suite Light Armor Plating Hacking Suite > --- WEAPON ----------- Pulse Rifle Katana > --- INVENTORY -------- Deuterium Engine Light Treads Light Treads Compact Wheel Cooled Antigrav System Hacking Suite Medium Laser Heavy Mace [Rating: 42] Favorites ----------- Power Light Nuclear Core Engine Light Ion Engine Power Core Light Nuclear Core Propulsion Xenon Bombardment Thruster Treads Light Treads Wheel Wheel Hover Unit Cooled Antigrav System Flight Unit Xenon Bombardment Thruster Utility Small Storage Unit Device ECM Suite Storage Small Storage Unit Hackware Hacking Suite Protection Light Armor Plating Weapon Light Assault Rifle Energy Gun Medium Laser Ballistic Gun Light Assault Rifle Ballistic Cannon Improved Light Cannon Slashing Weapon Katana Build | -11 -10 -9 -8 -7 -6 ------- Run | Yrd Mat Mat Mat Fac Fac Slots Evolved 8 | . . 2 2 2 2 Power 1 | . . . . . 1 Propulsion 4 | . . 2 1 1 . Utility 3 | . . . 1 1 1 Weapon . | . . . . . . Parts Attached 41 | 7 3 11 3 5 12 Power 7 | 1 1 1 . . 4 Engine 5 | 1 1 . . . 3 Core 2 | . . 1 . . 1 Reactor . | . . . . . . Propulsion 19 | 2 . 6 2 3 6 Treads 3 | 2 . . 1 . . Leg . | . . . . . . Wheel 2 | . . 1 . . 1 Hover 2 | . . . . . 2 Flight 12 | . . 5 1 3 3 Utility 8 | 2 1 2 . 1 2 Device 3 | 1 1 . . 1 . Storage 1 | 1 . . . . . Processor . | . . . . . . Hackware 2 | . . . . . 2 Protection 2 | . . 2 . . . Artifact . | . . . . . . Weapon 7 | 2 1 2 1 1 . Energy Gun 3 | 2 . . . 1 . Energy Cannon . | . . . . . . Ballistic Gun 2 | . 1 1 . . . Ballistic Cannon 1 | . . 1 . . . Launcher . | . . . . . . Special Weapon . | . . . . . . Impact Weapon . | . . . . . . Slashing Weapon 1 | . . . 1 . . Piercing Weapon . | . . . . . . Special Melee Weapon . | . . . . . . Unidentified Prototypes 1 | . . . . . 1 Parts Lost 31 | . 2 6 4 1 18 Power 3 | . . 2 . . 1 Propulsion 14 | . . 2 3 . 9 Utility 8 | . 1 . 1 . 6 Weapon 6 | . 1 2 . 1 2 Highest Loss Streak 14 | . 2 2 4 1 14 To Critical Strikes 2 | . . 1 . . 1 Average Backups 5 | 2 3 6 6 4 7 Power . | . 1 . . . . Propulsion 2 | 1 2 2 3 3 3 Utility 1 | . . 2 2 . . Weapon 1 | . . 1 1 1 2 Tool/Special . | . . . . . . Unused Backups 3 | . 1 . 1 . 1 Power 1 | . 1 . . . . Propulsion . | . . . . . . Utility 1 | . . . 1 . . Weapon 1 | . . . . . 1 Tool/Special . | . . . . . . Average Slot Usage (%) 71 | . 95 60 70 90 63 Engine 4 | . 14 5 . . 1 Core 4 | . . 5 9 7 4 Treads 6 | . 28 2 8 . . Wheel 1 | . . 2 . . 1 Flight 14 | . . 8 20 36 21 Device 7 | . 12 1 9 15 8 Storage 9 | . 14 11 9 7 5 Hackware 1 | . . . . . 5 Protection 3 | . . 3 4 6 3 Energy Gun 4 | . 16 2 . 3 3 Ballistic Gun 7 | . 8 12 5 2 . Ballistic Cannon 1 | . . 4 . . . Slashing Weapon 2 | . . . 4 7 4 Peak Build Rating 42 | 7 7 12 16 33 42 Average Rating 14 | 4 6 7 12 30 28 On Entrance 12 | . 7 7 12 16 33 Avg Prop Armor Cover (%) 15 | . . 5 19 . . Naked Turns 4 | . . . . . 4 Heaviest Build 33 | 13 13 20 20 22 33 Greatest Support 40 | 40 40 40 40 29 33 Greatest Overweight (x) 4 | . . 4 4 . 2 Average Overweight (x) . | . . 1 . . . Largest Inventory Capacity 8 | 8 8 8 8 8 8 Average Capacity 7 | 7 8 8 8 8 7 Most Carried 8 | 4 4 8 8 7 8 Average Carried 5 | 2 3 6 6 4 7 Final Capacity 8 | 8 8 8 8 8 5 Final Carried 8 | 3 4 8 8 6 5 Class Distribution -------------------- 69% | Mutant 23% | Sprinter 3% | Scavenger-Sprinter 3% | Scavenger-Mutant Dominant Class ---------------- Mutant | -10/Materials Mutant | -9/Materials Mutant | -8/Materials Sprinter | -7/Factory Sprinter | -6/Factory Resources | -11 -10 -9 -8 -7 -6 ----------- Run | Yrd Mat Mat Mat Fac Fac Matter Collected 743 | 270 41 300 22 . 110 Remotely . | . . . . . . Salvage Created 1176 | 98 163 663 52 . 200 Parts 77 | 6 11 50 4 . 6 Haulers Intercepted . | . . . . . . Recyclers Shooed 2 | . . 2 . . . Parts Field Recycled . | . . . . . . Retrieved Matter . | . . . . . . Parts Self-Destructed . | . . . . . . Prevented . | . . . . . . Parts Restored . | . . . . . . Kills | -11 -10 -9 -8 -7 -6 ------- Run | Yrd Mat Mat Mat Fac Fac Combat Hostiles Destroyed 26 | . 6 14 1 . 5 Melee 6 | . . . 1 . 5 Guns 13 | . 6 7 . . . Cannons 7 | . . 7 . . . Classes Destroyed 9 | 2 3 4 . . . Builder 1 | . . 1 . . . Tunneler 1 | 1 . . . . . Recycler 2 | 1 . 1 . . . Operator 1 | . 1 . . . . Watcher 3 | . . 3 . . . Swarmer 9 | . 4 2 . . 3 Grunt 9 | . 2 5 . . 2 Brawler 1 | . . 1 . . . Sentry 7 | . . 6 1 . . Best Kill Streak 5 | 2 3 5 1 . 3 Combat Bots Only 4 | . 3 4 1 . 3 Max Kills in Single Turn 1 | 1 1 1 1 . 1 Gunslinging . | . . . . . . Exploded . | . . . . . . Melee 1 | . . . 1 . 1 Uniques/NPCs Destroyed . | . . . . . . Combat | -11 -10 -9 -8 -7 -6 -------- Run | Yrd Mat Mat Mat Fac Fac Hostile Shots Fired 357 | . 51 92 11 16 187 Missed 127 | . 12 31 2 12 70 Hits 230 | . 39 61 9 4 117 Projectile 230 | . 39 61 9 4 117 AOE 1 | . . . . . 1 Critical Strikes 8 | . . 2 . . 6 Damage Taken 3278 | . 379 820 173 34 1872 Core 1161 | . 98 131 71 . 861 Absorbed by Shields . | . . . . . . Core Remaining (%) 82 | 100 60 67 87 100 . Volleys Fired 94 | 4 29 56 2 1 2 Largest 2 | 2 2 2 1 1 1 Hottest 90 | 90 90 70 20 63 63 Shots Fired 162 | 8 45 104 2 1 2 Gun 136 | 8 45 78 2 1 2 Cannon 26 | . . 26 . . . Launcher . | . . . . . . Special . | . . . . . . Kinetic 99 | . 11 86 2 . . Thermal 51 | 4 26 18 . 1 2 Explosive . | . . . . . . Electromagnetic 12 | 4 8 . . . . Robot Hit Streak 15 | 4 6 15 1 2 3 Robot Miss Streak 4 | 2 4 4 1 . . Penetration Max . | . . . . . . Secondary Targets 1 | . 1 . . . . Max Gunslinging Chain 1 | . 1 . . . . Shots Hit Robots 109 | 5 23 64 2 1 14 Core Hits 54 | 3 10 33 1 . 7 Critical Kills . | . . . . . . Critical Parts Destroyed . | . . . . . . Critical Strikes 6 | . . 5 . . 1 Burn 4 | . . 4 . . . Blast 1 | . . 1 . . . Sever 1 | . . . . . 1 Melee Attacks 65 | . . . 4 21 40 Impact . | . . . . . . Slashing 65 | . . . 4 21 40 Piercing . | . . . . . . Sneak Attacks . | . . . . . . Combat Hostiles . | . . . . . . Follow-up Attacks . | . . . . . . Damage Inflicted 1695 | 121 261 820 38 18 437 Guns 843 | 80 261 460 6 18 18 Cannons 360 | . . 360 . . . Explosions 41 | 41 . . . . . Melee 436 | . . . 32 . 404 Ramming 15 | . . . . . 15 Kinetic 675 | . 38 631 6 . . Thermal 468 | 67 176 189 . 18 18 Explosive . | . . . . . . Electromagnetic 101 | 54 47 . . . . Impact . | . . . . . . Slashing 436 | . . . 32 . 404 Piercing . | . . . . . . Highest Corruption 4 | . . . . . 4 Average Corruption 2 | . . . . . 2 Corruption Purged . | . . . . . . Corruption Blocked . | . . . . . . Effects 1 | . . . . . 1 Message Errors 1 | . . . . . 1 Overload Shots . | . . . . . . Overflow Damage 7 | . . 3 . . 4 Projectiles 3 | . . 3 . . . Explosions . | . . . . . . Melee 4 | . . . . . 4 Knockbacks 1 | . . 1 . . . Impact . | . . . . . . Kinetic 1 | . . 1 . . . Secondary . | . . . . . . Self-Inflicted Damage 7 | . . . . . 7 Shots . | . . . . . . Rammed 1 | . . . . . 1 Targets Rammed 1 | . . . . . 1 Kicked . | . . . . . . Crushed . | . . . . . . Highest Temperature 182 | 60 182 140 6 60 102 Average Temperature 36 | 31 78 34 2 19 34 Received Heat Transfer 696 | . 84 288 45 12 267 Siege Activations . | . . . . . . Martial Activations . | . . . . . . Shielding Activations . | . . . . . . Robots Disrupted . | . . . . . . Combat Hostiles . | . . . . . . Robots Corrupted . | . . . . . . Combat Hostiles . | . . . . . . Parts Fried . | . . . . . . Impact Corruptions . | . . . . . . Robots Melted . | . . . . . . Combat Hostiles . | . . . . . . Parts Melted 2 | . 1 1 . . . Heat Transferred 1517 | 74 518 851 . 37 37 Parts Sabotaged . | . . . . . . Parts Stolen . | . . . . . . Parts Stripped . | . . . . . . Power Chain Reactions 1 | 1 . . . . . Alert | -11 -10 -9 -8 -7 -6 ------- Run | Yrd Mat Mat Mat Fac Fac Maximum Alert Level 1 | . . 1 . . . Low Security (%) 99 | 100 100 97 100 100 100 Level 1 . | . . 2 . . . Level 2 . | . . . . . . Level 3 . | . . . . . . Level 4 . | . . . . . . Level 5 . | . . . . . . High Security . | . . . . . . Max Security . | . . . . . . Peak Influence 229 | 5 50 229 98 21 51 Initial 93 | . . 12 93 2 . Average 25 | . 18 38 54 3 9 Influence Increases 964 | 10 149 465 53 55 232 Destroy 0b10 Robot/C 520 | . 120 280 20 . 100 Destroy 0b10 Robot/NC 40 | 10 5 25 . . . Destroy Leader 136 | . 20 96 10 . 10 Successful Hack 100 | . 4 . 23 23 50 Destroy Structure 33 | . . 4 . 17 12 Partial Spotted 15 | . . . . 15 . Lose Combat Pursuer 120 | . . 60 . . 60 Influence Decreases 964 | 10 119 272 270 59 234 Entered New Map 154 | . . 18 130 4 2 Time Decay 594 | 10 109 234 100 45 96 Lost Part 216 | . 10 20 40 10 136 Squads Dispatched 4 | . . 3 . . 1 Investigation . | . . . . . . Extermination 1 | . . . . . 1 Reinforcement 3 | . . 3 . . . Assault . | . . . . . . Garrison . | . . . . . . Intercept . | . . . . . . Searches Triggered . | . . . . . . Construction Impeded . | . . . . . . Haulers Reinforced . | . . . . . . Active Scanning Responses . | . . . . . . Cargo Convoy Interrupts . | . . . . . . Stealth | -11 -10 -9 -8 -7 -6 --------- Run | Yrd Mat Mat Mat Fac Fac Distress Signals 6 | . 2 3 . . 1 Communications Jammed . | . . . . . . Distress Signals . | . . . . . . Times Spotted 84 | . 13 31 3 5 32 Peak Tracking Total 10 | . 4 7 2 3 10 Tactical Retreats 12 | . 3 2 . 2 5 ECM-based Alert Blocks 24 | . 5 1 . 4 14 Traps | -11 -10 -9 -8 -7 -6 ------- Run | Yrd Mat Mat Mat Fac Fac Traps Triggered 1 | . . 1 . . . Indirectly . | . . . . . . Trap Hack Attempts . | . . . . . . Triggered . | . . . . . . Disarmed . | . . . . . . Reprogrammed . | . . . . . . Reused . | . . . . . . Traps Extracted . | . . . . . . Installed . | . . . . . . Triggered . | . . . . . . Machines | -11 -10 -9 -8 -7 -6 ---------- Run | Yrd Mat Mat Mat Fac Fac Machines Disabled . | . . . . . . Max in Single Turn . | . . . . . . Machines Repaired . | . . . . . . Machines Dismantled . | . . . . . . Machines Sabotaged . | . . . . . . Overloaded Fab Kills . | . . . . . . Hacking | -11 -10 -9 -8 -7 -6 --------- Run | Yrd Mat Mat Mat Fac Fac Machines Accessed 18 | . 2 3 5 4 4 Terminals 13 | . 2 2 4 3 2 Fabricators 2 | . . . . 1 1 Repair Stations . | . . . . . . Recycling Units 1 | . . 1 . . . Scanalyzers 2 | . . . 1 . 1 Garrison Access . | . . . . . . Total Hacks 41 | . 5 8 13 8 7 Successful 18 | . 3 2 5 4 4 Failed 23 | . 2 6 8 4 3 Catastrophic 1 | . . . . . 1 Database Lockouts . | . . . . . . Manual 22 | . 1 1 12 7 1 Terminals 31 | . 5 3 12 7 4 Fabricators 3 | . . . . 1 2 Repair Stations . | . . . . . . Recycling Units 5 | . . 5 . . . Scanalyzers 2 | . . . 1 . 1 Garrison Access . | . . . . . . Terminal Hacks 3 | . 2 . . . 1 Alert Level 1 | . 1 . . . . Locate Traps 1 | . 1 . . . . Zone Layout 1 | . . . . . 1 Fabricator Hacks 2 | . . . . 1 1 Build 2 | . . . . 1 1 Repair Station Hacks . | . . . . . . Recycling Unit Hacks 1 | . . 1 . . . Retrieve Components 1 | . . 1 . . . Scanalyzer 2 | . . . 1 . 1 Retrieve Study 2 | . . . 1 . 1 Garrison Access Hacks . | . . . . . . Unauthorized Hacks 10 | . 1 1 4 3 1 Terminals 10 | . 1 1 4 3 1 Assimilate 1 | . . . 1 . . Botnet 9 | . 1 1 3 3 1 Fabricators . | . . . . . . Repair Stations . | . . . . . . Recycling Units . | . . . . . . Scanalyzers . | . . . . . . Garrison Access . | . . . . . . Data Cores Recovered 1 | . 1 . . . . Used . | . . . . . . Hacking Detections 13 | . 1 2 4 3 3 Full Trace Events 2 | . . 2 . . . Feedback Events . | . . . . . . Feedback Blocked . | . . . . . . Robot Schematics Acquired . | . . . . . . Robots Built . | . . . . . . Authchips . | . . . . . . Time 116 | . . . . 116 . Total Robot Build Rating . | . . . . . . Part Schematics Acquired . | . . . . . . Parts Built 1 | . . . . . 1 Authchips . | . . . . . . Time 102 | . . . . . 102 Total Part Build Rating 8 | . . . . . 8 Part Studies Acquired 2 | . . . 1 . 1 Parts Repaired . | . . . . . . Time . | . . . . . . Parts Recycled . | . . . . . . Recycled Matter . | . . . . . . Retrieved Matter . | . . . . . . Retrieved Components 4 | . . 4 . . . Parts Scanalyzed . | . . . . . . Part Schematics Acquired . | . . . . . . Parts Damaged . | . . . . . . Bothacking | -11 -10 -9 -8 -7 -6 ------------ Run | Yrd Mat Mat Mat Fac Fac Used RIF Installer . | . . . . . . Robots Hacked . | . . . . . . Non-combat . | . . . . . . Combat . | . . . . . . Robot Hacks Applied . | . . . . . . Relay Couplers Released . | . . . . . . Fabnet Peak Effective % . | . . . . . . Robots Rewired . | . . . . . . Allies Hacked . | . . . . . . Hacks Repelled . | . . . . . . Allies | -11 -10 -9 -8 -7 -6 -------- Run | Yrd Mat Mat Mat Fac Fac Total Allies . | . . . . . . Largest Group . | . . . . . . Highest-Rated Group . | . . . . . . Highest-Rated Ally . | . . . . . . Total Orders . | . . . . . . Ally Attacks . | . . . . . . Total Damage . | . . . . . . Kills . | . . . . . . Allies Corrupted . | . . . . . . Allies Melted . | . . . . . . Intel | -11 -10 -9 -8 -7 -6 ------- Run | Yrd Mat Mat Mat Fac Fac Active Infowar (turns) 1304 | 16 328 127 210 292 331 Traps 590 | . . . . 292 298 Seismic 65 | 16 49 . . . . ECM 1239 | . 279 127 210 292 331 Robot Analysis Total . | . . . . . . Derelict Logs Recovered . | . . . . . . Drone Launches . | . . . . . . Drone Recoveries . | . . . . . . Exploration | -11 -10 -9 -8 -7 -6 ------------- Run | Yrd Mat Mat Mat Fac Fac Turns Passed 2421 | 93 371 987 210 292 468 Spaces Moved 2032 | 48 166 562 189 505 562 Core 35 | 8 . . 14 . 13 Treads 300 | 40 166 55 39 . . Legs . | . . . . . . Wheels 230 | . . 147 . . 83 Hover 50 | . . . . . 50 Flight 1417 | . . 360 136 505 416 Fastest Speed 26 | 50 160 31 31 28 26 Average Speed 83 | 141 160 141 97 28 43 Slowest Speed 365 | 160 160 365 250 28 200 Overloaded Moves 37 | . . . . . 37 Propulsion Burnouts . | . . . . . . Robots Hopped 3 | . . 3 . . . Potential Cave-ins 3 | . . . . . 3 Cave-ins Triggered . | . . . . . . Exploration Rate (%) 22 | 4 31 57 15 14 16 Regions Visited 5 Branch Regions . Pre-discovered Areas . | . . . . . . Known Exits Taken . | . . . . . . Unknown Exits Taken 5 | 1 1 1 1 1 . Scrap Searched . | . . . . . . Spaces Dug 37 | . . . . 20 17 Terrain Destroyed 45 | 6 . 2 . 20 17 Melee 37 | . . . . 20 17 Projectile 2 | . . 2 . . . AOE 6 | 6 . . . . . Terrain Rammed . | . . . . . . Walls Destroyed . | . . . . . . Machines Disabled . | . . . . . . Actions | -11 -10 -9 -8 -7 -6 --------- Run | Yrd Mat Mat Mat Fac Fac Total 2498 | 62 228 656 208 622 722 Wait 230 | . 29 19 . 85 97 Move 2022 | 47 165 556 188 504 562 Hop 2 | . . 2 . . . Pick Up 15 | 4 1 3 4 2 1 Fast Attach 26 | 6 2 8 2 1 7 Attach 20 | 1 . 5 4 6 4 Detach 11 | . . 4 2 2 3 Swap 6 | . 1 3 . . 2 Drop 6 | . 1 . 2 . 3 Fire 94 | 4 29 56 2 1 2 Melee 65 | . . . 4 21 40 Ram 1 | . . . . . 1 Kick . | . . . . . . Crush . | . . . . . . Escape Stasis . | . . . . . . Rewire . | . . . . . . Trap . | . . . . . . Miscellaneous . | . . . . . . Route ------- -11/Scrapyard -10/Materials -9/Materials (discovered 2 exits: *Mat / [*Min]) -8/Materials -7/Factory -6/Factory History --------- Turn | Location | Event 2 | -11/Scrapyard | Met Revision 17 8 | -11/Scrapyard | Discovered new exit (range 15) 94 | -11/Scrapyard | Entered Materials 307 | -10/Materials | Build established: Mutant 440 | -10/Materials | Discovered new exit (range 5) 465 | -10/Materials | Entered another Materials area 465 | -9/Materials | Evolved 2 slots: Propulsion x2 1418 | -9/Materials | Discovered new exit (range 16) 1448 | -9/Materials | Discovered new exit (range 15) 1452 | -9/Materials | Entered another Materials area 1452 | -8/Materials | Evolved 2 slots: Propulsion x1, Utility x1 1587 | -8/Materials | Lost 4 parts (3n1u) 1609 | -8/Materials | Discovered new exit (range 14) 1662 | -8/Materials | Entered Factory 1662 | -7/Factory | Evolved 2 slots: Propulsion x1, Utility x1 1875 | -7/Factory | Fabricated M-14 Sweeper? 1950 | -7/Factory | Discovered new exit (range 9) 1954 | -7/Factory | Entered another Factory area 1954 | -6/Factory | Evolved 2 slots: Power x1, Utility x1 1957 | -6/Factory | Build established: Sprinter 2066 | -6/Factory | Fabricated Cld. Antigrav System (x1) 2333 | -6/Factory | Lost 14 parts (1p8n3u2w) 2350 | -6/Factory | Core integrity fell below 50% 2405 | -6/Factory | Core integrity fell below 20% 2422 | -6/Factory | Destroyed by S-27 Virus with Autogun Last Messages --------------- 02384_ ALERT: Potential suspicious activity detected, Programmers report to Factory Zone 7V. 02384_ K-01 Serf cleans the Megafabricator. 02389_ Hacking Suite destroyed. 02391_ K-01 Serf destroyed. 02392_ K-01 Serf cleans the Megafabricator. 02403_ Manufacturing Mainframe disabled. 02404_ Sml. Storage Unit destroyed. 02405_ Manufacturing Mainframe disabled. 02405_ Slammed into P-60 Hacker. 02406_ 0|T3 W1&V=D:I:% #PTQ 1OP 02406_ K-01 Serf collects debris. 02406_ Penetrated by Slug. 02408_ K-01 Serf collects debris. 02408_ Cld. Antigrav System destroyed. 02409_ Hacking Suite destroyed. 02409_ S-27 Virus destroyed. 02413_ Acquired Gravmag Array. 02416_ Slug penetrates Wall. Map ----- +----------------------------------------------------+ | ?????????????????????????????????????????????????? | | ?????????????????????????????????????????????????? | | ?????????????????????????????????????????????????? | | ?????????????????????????????????????????????????? | | ?????????????????????????????????????????????????? | | ?????????????????????????????????????????????????? | | ?????????????????????????????????????????????????? | | ?????????????????????????????????????????????????? | | ?????????????????????????????????????????????????? | | ?????????????????????????????????????????????????? | | ?????????????????????????????????????????????????? | | ?????????????????????????????????????????????????? | | ???????????????????????????????"?????????????????? | | ?????????????????????????????? """???????????????? | | ?????????????????????????????? ????????????????? | | ?????????????????????????????u ????????????????? | | ????????????????????????????? ????????????????? | | ???????????????????????????? ????????????????? | | ???############?????####???? """ "??????????????? | | ??? #??####T ##### """ "??????????????? | | ?# """" """" #??# """ "??????????????? | | ?# """" """" #??# ???????????????? | | ?# """" """" #??# """ ???????????????? | | ?# """" " "" #??# """ ???????????????? | | ?# #??# """ """ ???????????? | | ?# """" = #### k @ ????????? | | ?# """" ## ss """ """????????????? | | ?# """" ## ##/####### """ ???????????????? | | ?# """ = " " ## # #?? """ ???????????????? | | ?# "Y" ## # ] #??? ???????????????? | | ?# """ ## # #???? """ "??????????????? | | ########/####### # #?? ?""" "??????????????? | | %= / #?? """ "??????????????? | | * # #?? ????????????????? | | ^ ########## "??????????????????? | | ??? ""?????????????????? | | ? """????????????????? | | ^ ##############?# ????????????????? | | #??????????????# """ "??????????????? | | ######?????????# """ "??????????????? | | #?????????# """ "??????????????? | | %* #?????????# ?????????????? | | = #?????????# """ ""?????????????? | | #?????????# """ """????????????? | | ########### """ """ "T?????????? | | ???????? | | ???????? | | ######??????????????? | | ####################### #???????????????????? | | ??????????????????????# ###############?????? | +----------------------------------------------------+ Best States ------------- Heat Dissipation 37 Energy Generation 26 Energy Capacity 340 Matter Stores 300 Matter Capacity 300 Sight Range 16 Terrain Scan Density 10 ECM Strength 1 Armor Coverage 150 Evasion (%) 64 Recoil Reduction 2 Offensive Hacking 10 Item Schematics ----------------- None Robot Schematics ------------------ None Fabricated ------------ Cld. Antigrav System | x1 | -6/Factory | Preloaded Repaired ---------- Nothing Studied --------- Flight Unit | -8/Materials | Hacked Xenon Bombardment Thruster | -6/Factory | Hacked Alien Tech Used ----------------- None Achievements -------------- None Challenges ------------ None Game ------ Seed HybridSniperInterface Manual? 0 Play Time 00:30:17 Cumulative 63.0 hours Start 2026.03.13 @ 18:20:53 End 2026.03.13 @ 18:54:47 Sessions 1 Manual Loads 0 Difficulty Rogue Special Mode None Game No. 144 Rogue 144 Adventurer 0 Explorer 0 Win Type - Total 0 Types 0/0/0/0/0/0/0/0/0/0 Lore% 36 Gallery% 42 Achievement% 33 Wizard Run 0 Options --------- Layout 2 ASCII 0 Keyboard 1 Movement Arrows Keybinds 0 Fullscreen 1 Font 24/Smallcaps Map View 50x44 Zoom Use 0% Tactical HUD 1 Map Filters NONE Filters NONE Steam 1 RUN: 5981e904-0a89-4420-90b7-e2aa3877d336